[Event "*** Titled Tuesday 3|2 Blitz (Early)"]
[Site "Chess.com"]
[Date "2017.01.03"]
[Round "6"]
[White "Iball95"]
[Black "Mazetovic"]
[Result "1-0"]
[WhiteElo "2464"]
[BlackElo "2444"]
[TimeControl "180+2"]
[EndTime "12:17:33 PST"]
[Termination "Iball95 won by resignation"]

1. e4 {[%clk 0:03:02]} 1... c5 {[%clk 0:02:59.6]} 2. Nf3 {[%clk 0:03:03.4]} 2...
Nc6 {[%clk 0:02:55.6]} 3. Bb5 {[%clk 0:03:04.5]} 3... g6 {[%clk 0:02:44.9]} 4.
Bxc6 {[%clk 0:03:05.6]} 4... bxc6 {[%clk 0:02:40.9]} 5. O-O {[%clk 0:03:05.9]}
5... Bg7 {[%clk 0:02:36.6]} 6. Re1 {[%clk 0:03:04.9]} 6... e5 {[%clk 0:02:30.6]}
7. c3 {[%clk 0:03:01.1]} 7... c4 {[%clk 0:02:29.3]} 8. Qa4 {[%clk 0:02:51.8]}
8... Ne7 {[%clk 0:02:28.6]} 9. Qxc4 {[%clk 0:02:52.8]} 9... O-O {[%clk
0:02:27.6]} 10. d3 {[%clk 0:02:43.2]} 10... a5 {[%clk 0:02:26.5]} 11. Qa4 {[%clk
0:02:40.4]} 11... h6 {[%clk 0:02:25]} 12. Na3 {[%clk 0:02:36.6]} 12... d6 {[%clk
0:02:25.2]} 13. Nc4 {[%clk 0:02:33.5]} 13... f5 {[%clk 0:02:23.7]} 14. Be3
{[%clk 0:02:25.9]} 14... Be6 {[%clk 0:02:18.4]} 15. Nfd2 {[%clk 0:01:56.7]}
15... d5 {[%clk 0:02:04]} 16. exd5 {[%clk 0:01:47.4]} 16... cxd5 {[%clk
0:02:03.7]} 17. Bb6 {[%clk 0:01:48.4]} 17... Qb8 {[%clk 0:01:56]} 18. Bc5 {[%clk
0:01:39.3]} 18... dxc4 {[%clk 0:01:50.8]} 19. Bxe7 {[%clk 0:01:39.5]} 19... Re8
{[%clk 0:01:48.2]} 20. Qa3 {[%clk 0:01:36.2]} 20... cxd3 {[%clk 0:01:38.6]} 21.
Bc5 {[%clk 0:01:31.6]} 21... e4 {[%clk 0:01:38.1]} 22. Rab1 {[%clk 0:01:25.6]}
22... a4 {[%clk 0:01:36.8]} 23. Be3 {[%clk 0:01:23.7]} 23... Bf8 {[%clk
0:01:36.6]} 24. Bc5 {[%clk 0:01:23.2]} 24... Bg7 {[%clk 0:01:34.1]} 25. f3
{[%clk 0:01:12.6]} 25... Bd5 {[%clk 0:01:28.5]} 26. fxe4 {[%clk 0:01:13]} 26...
Bxe4 {[%clk 0:01:27.5]} 27. Be3 {[%clk 0:00:59]} 27... Qb7 {[%clk 0:01:24.1]}
28. Qd6 {[%clk 0:00:49.9]} 28... Ra6 {[%clk 0:01:21.7]} 29. Qg3 {[%clk
0:00:49.7]} 29... g5 {[%clk 0:01:18.6]} 30. Qf2 {[%clk 0:00:48.6]} 30... Rae6
{[%clk 0:01:12.3]} 31. Bd4 {[%clk 0:00:36.6]} 31... Bf8 {[%clk 0:01:11.4]} 32.
Nxe4 {[%clk 0:00:30.3]} 32... fxe4 {[%clk 0:01:07.4]} 33. Qe3 {[%clk 0:00:21.4]}
33... Bd6 {[%clk 0:01:06.5]} 34. g3 {[%clk 0:00:20.8]} 34... Qd5 {[%clk
0:01:03.8]} 35. b3 {[%clk 0:00:20.9]} 35... axb3 {[%clk 0:01:03.9]} 36. axb3
{[%clk 0:00:22.8]} 36... Be5 {[%clk 0:01:00.5]} 37. Bxe5 {[%clk 0:00:22.4]}
37... Qxe5 {[%clk 0:00:58.2]} 38. c4 {[%clk 0:00:22]} 38... Rf6 {[%clk
0:00:57.1]} 39. Rf1 {[%clk 0:00:23.1]} 39... Rd6 {[%clk 0:00:53.9]} 40. c5
{[%clk 0:00:21.4]} 40... Rd5 {[%clk 0:00:49.6]} 41. b4 {[%clk 0:00:22.6]} 41...
d2 {[%clk 0:00:48.7]} 42. Rbd1 {[%clk 0:00:23]} 42... Rd3 {[%clk 0:00:48.8]} 43.
Qf2 {[%clk 0:00:23.8]} 43... e3 {[%clk 0:00:48.1]} 44. Qf7+ {[%clk 0:00:24.3]}
44... Kh8 {[%clk 0:00:49.2]} 45. Rf6 {[%clk 0:00:25.6]} 1-0

[Event "*** Titled Tuesday 3|2 Blitz (Early)"]
[Site "Chess.com"]
[Date "2017.01.03"]
[Round "6"]
[White "Ginger_GM"]
[Black "Canonkasparov"]
[Result "1-0"]
[WhiteElo "2452"]
[BlackElo "2314"]
[TimeControl "180+2"]
[EndTime "12:17:36 PST"]
[Termination "Ginger_GM won by resignation"]

1. e4 {[%clk 0:03:02]} 1... d5 {[%clk 0:02:59.1]} 2. exd5 {[%clk 0:02:57.6]}
2... Qxd5 {[%clk 0:03:01]} 3. Nc3 {[%clk 0:02:58.1]} 3... Qa5 {[%clk 0:02:59.7]}
4. Bc4 {[%clk 0:02:58.7]} 4... Nf6 {[%clk 0:03:00.8]} 5. d3 {[%clk 0:02:59]}
5... c6 {[%clk 0:03:01.2]} 6. Bd2 {[%clk 0:02:59.6]} 6... Qd8 {[%clk 0:03:01.7]}
7. Qe2 {[%clk 0:02:58.9]} 7... g6 {[%clk 0:03:03.6]} 8. h4 {[%clk 0:02:58.8]}
8... Bg7 {[%clk 0:03:04.2]} 9. Nf3 {[%clk 0:02:59.8]} 9... Bg4 {[%clk
0:03:04.2]} 10. Bxf7+ {[%clk 0:02:59.6]} 10... Kxf7 {[%clk 0:02:59.1]} 11. Ne5+
{[%clk 0:02:56.8]} 11... Ke8 {[%clk 0:02:57.9]} 12. Nxg4 {[%clk 0:02:57.4]}
12... Nxg4 {[%clk 0:02:58.2]} 13. Qxg4 {[%clk 0:02:58]} 13... Qd7 {[%clk
0:02:57.8]} 14. Qe2 {[%clk 0:02:57.3]} 14... Qf5 {[%clk 0:02:53.3]} 15. O-O-O
{[%clk 0:02:54.6]} 15... Nd7 {[%clk 0:02:53.3]} 16. Rde1 {[%clk 0:02:52.4]}
16... e5 {[%clk 0:02:53.6]} 17. g4 {[%clk 0:02:52.3]} 17... Qf7 {[%clk
0:02:52.2]} 18. h5 {[%clk 0:02:44.8]} 18... Kd8 {[%clk 0:02:45.4]} 19. Kb1
{[%clk 0:02:42.7]} 19... Kc7 {[%clk 0:02:43.8]} 20. h6 {[%clk 0:02:37]} 20...
Bf6 {[%clk 0:02:43.7]} 21. f4 {[%clk 0:02:36.8]} 21... Rae8 {[%clk 0:02:42.6]}
22. Ne4 {[%clk 0:02:32.3]} 22... Re6 {[%clk 0:02:33.4]} 23. f5 {[%clk 0:02:30]}
23... gxf5 {[%clk 0:02:23.2]} 24. gxf5 {[%clk 0:02:30.7]} 24... Re7 {[%clk
0:02:24]} 25. Reg1 {[%clk 0:02:29.7]} 25... Ree8 {[%clk 0:02:14.2]} 26. Bb4
{[%clk 0:02:20]} 26... c5 {[%clk 0:02:08.7]} 27. Nxc5 {[%clk 0:02:16]} 27...
Nxc5 {[%clk 0:02:01.8]} 28. Bxc5 {[%clk 0:02:16.4]} 28... Qd5 {[%clk 0:02:00.3]}
29. Ba3 {[%clk 0:02:04.8]} 29... e4 {[%clk 0:02:00.8]} 30. dxe4 {[%clk
0:02:01.9]} 30... Rxe4 {[%clk 0:02:01]} 31. Qd3 {[%clk 0:01:57.9]} 31... Qxd3
{[%clk 0:01:55.8]} 32. cxd3 {[%clk 0:01:58.4]} 32... Re2 {[%clk 0:01:54.8]} 33.
Rc1+ {[%clk 0:01:51.6]} 33... Kd7 {[%clk 0:01:55.1]} 34. Rc2 {[%clk 0:01:34.5]}
34... Rhe8 {[%clk 0:01:44.6]} 35. d4 {[%clk 0:01:22.6]} 35... Re1+ {[%clk
0:01:34.4]} 36. Rc1 {[%clk 0:01:19.9]} 36... R1e2 {[%clk 0:01:31.9]} 37. Bb4
{[%clk 0:01:15.8]} 37... Bxd4 {[%clk 0:01:15.7]} 38. Bc3 {[%clk 0:01:10.1]}
38... Bxc3 {[%clk 0:01:15.9]} 39. bxc3 {[%clk 0:01:08.7]} 39... R8e5 {[%clk
0:01:10.3]} 40. Rc2 {[%clk 0:00:57.2]} 40... Rxc2 {[%clk 0:01:07.6]} 41. Kxc2
{[%clk 0:00:58.3]} 41... Rxf5 {[%clk 0:01:09.5]} 42. Rg1 {[%clk 0:00:58.4]}
42... Rf7 {[%clk 0:01:06]} 43. Kd3 {[%clk 0:00:56.6]} 43... Ke6 {[%clk
0:01:06.5]} 44. Ke4 {[%clk 0:00:52.4]} 44... Rf6 {[%clk 0:01:06.5]} 45. Rg7
{[%clk 0:00:51.3]} 45... Rxh6 {[%clk 0:01:07]} 46. Rxb7 {[%clk 0:00:52.2]} 46...
Rh4+ {[%clk 0:01:07.3]} 47. Kd3 {[%clk 0:00:52.1]} 47... Ra4 {[%clk 0:01:07.9]}
48. Rb2 {[%clk 0:00:46.9]} 48... h5 {[%clk 0:01:06.8]} 49. c4 {[%clk 0:00:47.9]}
49... Ke5 {[%clk 0:01:06]} 50. Re2+ {[%clk 0:00:48.7]} 50... Kf4 {[%clk
0:01:06.8]} 51. c5 {[%clk 0:00:50]} 51... h4 {[%clk 0:01:06.7]} 52. c6 {[%clk
0:00:50.1]} 52... Ra6 {[%clk 0:01:06.7]} 53. Rc2 {[%clk 0:00:51.3]} 53... Ra3+
{[%clk 0:01:05.7]} 54. Kd4 {[%clk 0:00:51.4]} 54... Ra4+ {[%clk 0:00:53.7]} 55.
Kd5 {[%clk 0:00:50.4]} 55... Ra5+ {[%clk 0:00:54.7]} 56. Kd6 {[%clk 0:00:49.3]}
56... Ra6 {[%clk 0:00:55.9]} 57. Kd7 {[%clk 0:00:50.5]} 57... h3 {[%clk
0:00:53.3]} 58. c7 {[%clk 0:00:51.2]} 58... Rh6 {[%clk 0:00:53.2]} 59. c8=Q
{[%clk 0:00:51.3]} 59... h2 {[%clk 0:00:54.5]} 60. Qf8+ {[%clk 0:00:51.3]} 60...
Kg3 {[%clk 0:00:55.5]} 61. Qxh6 {[%clk 0:00:51.9]} 1-0

[Event "*** Titled Tuesday 3|2 Blitz (Early)"]
[Site "Chess.com"]
[Date "2017.01.03"]
[Round "6"]
[White "RobertoJBM"]
[Black "Haykos"]
[Result "0-1"]
[WhiteElo "2475"]
[BlackElo "2437"]
[TimeControl "180+2"]
[EndTime "12:17:39 PST"]
[Termination "Haykos won on time"]

1. d4 {[%clk 0:03:02]} 1... d5 {[%clk 0:02:54.7]} 2. Nf3 {[%clk 0:03:02.6]} 2...
Nf6 {[%clk 0:02:52.4]} 3. e3 {[%clk 0:03:03.3]} 3... e6 {[%clk 0:02:47.3]} 4.
Bd3 {[%clk 0:03:03.6]} 4... c5 {[%clk 0:02:46.8]} 5. b3 {[%clk 0:03:04.4]} 5...
Nc6 {[%clk 0:02:40.3]} 6. O-O {[%clk 0:03:04.2]} 6... Be7 {[%clk 0:02:35.5]} 7.
Bb2 {[%clk 0:03:05]} 7... O-O {[%clk 0:02:36.1]} 8. a3 {[%clk 0:03:04.6]} 8...
cxd4 {[%clk 0:02:35.6]} 9. exd4 {[%clk 0:03:05]} 9... b6 {[%clk 0:02:25.5]} 10.
Qe2 {[%clk 0:03:05.3]} 10... Bb7 {[%clk 0:02:24.5]} 11. Nbd2 {[%clk 0:03:05.5]}
11... Rc8 {[%clk 0:02:25.1]} 12. Ne5 {[%clk 0:03:06.2]} 12... Nxe5 {[%clk
0:02:22.8]} 13. dxe5 {[%clk 0:03:08.1]} 13... Nd7 {[%clk 0:02:21.6]} 14. b4
{[%clk 0:03:08.8]} 14... a5 {[%clk 0:01:54.9]} 15. c3 {[%clk 0:03:09.3]} 15...
Qc7 {[%clk 0:01:35.2]} 16. f4 {[%clk 0:03:09.3]} 16... Nb8 {[%clk 0:01:34]} 17.
f5 {[%clk 0:03:04.2]} 17... exf5 {[%clk 0:01:32.9]} 18. Rxf5 {[%clk 0:03:05.6]}
18... Nc6 {[%clk 0:01:28.7]} 19. Re1 {[%clk 0:03:05.6]} 19... g6 {[%clk
0:01:27]} 20. Rff1 {[%clk 0:03:03.7]} 20... Rce8 {[%clk 0:01:24.9]} 21. Nf3
{[%clk 0:03:00.2]} 21... Bf6 {[%clk 0:01:23.6]} 22. Bb5 {[%clk 0:02:50.6]} 22...
Bg7 {[%clk 0:01:13.3]} 23. Qd2 {[%clk 0:02:48.1]} 23... Re7 {[%clk 0:01:08.1]}
24. c4 {[%clk 0:02:37.6]} 24... Nxe5 {[%clk 0:01:07.2]} 25. Bxe5 {[%clk
0:02:25.4]} 25... Bxe5 {[%clk 0:01:09.1]} 26. cxd5 {[%clk 0:02:24.7]} 26... axb4
{[%clk 0:01:06]} 27. axb4 {[%clk 0:02:12.5]} 27... Bd6 {[%clk 0:01:07.5]} 28.
Rc1 {[%clk 0:02:04.9]} 28... Qd8 {[%clk 0:01:02.1]} 29. Bc6 {[%clk 0:02:05]}
29... Ba6 {[%clk 0:00:59]} 30. b5 {[%clk 0:02:03.1]} 30... Bc8 {[%clk
0:01:00.5]} 31. Nd4 {[%clk 0:02:00.2]} 31... Bc5 {[%clk 0:00:55.7]} 32. Kh1
{[%clk 0:02:00.7]} 32... Qd6 {[%clk 0:00:54.8]} 33. Nb3 {[%clk 0:02:01.2]} 33...
Be3 {[%clk 0:00:52.5]} 34. Qc3 {[%clk 0:01:55.7]} 34... Bxc1 {[%clk 0:00:51.5]}
35. Nxc1 {[%clk 0:01:57.6]} 35... Bf5 {[%clk 0:00:48.2]} 36. Nb3 {[%clk
0:01:57.1]} 36... Be4 {[%clk 0:00:46.5]} 37. Qd4 {[%clk 0:01:51.3]} 37... Rd8
{[%clk 0:00:44.5]} 38. Rd1 {[%clk 0:01:50.4]} 38... Bc2 {[%clk 0:00:42.5]} 39.
Nc1 {[%clk 0:01:41.5]} 39... Bxd1 {[%clk 0:00:40.1]} 40. Qxd1 {[%clk 0:01:43.4]}
40... Qb4 {[%clk 0:00:32.5]} 41. Nd3 {[%clk 0:01:44]} 41... Qc3 {[%clk
0:00:30.7]} 42. h3 {[%clk 0:01:09.9]} 42... Re3 {[%clk 0:00:30.9]} 0-1

[Event "*** Titled Tuesday 3|2 Blitz (Early)"]
[Site "Chess.com"]
[Date "2017.01.03"]
[Round "6"]
[White "DuleMudule"]
[Black "BillieKimbah"]
[Result "1-0"]
[WhiteElo "2523"]
[BlackElo "2578"]
[TimeControl "180+2"]
[EndTime "12:18:06 PST"]
[Termination "DuleMudule won on time"]

1. d4 {[%clk 0:03:02]} 1... Nf6 {[%clk 0:03:00.3]} 2. Nc3 {[%clk 0:03:03.2]}
2... d5 {[%clk 0:03:00.8]} 3. Bf4 {[%clk 0:03:04.8]} 3... e6 {[%clk 0:03:01.8]}
4. e3 {[%clk 0:03:05.2]} 4... Bb4 {[%clk 0:03:00.5]} 5. Bd3 {[%clk 0:03:05.9]}
5... O-O {[%clk 0:02:57.8]} 6. Nf3 {[%clk 0:03:02.4]} 6... c5 {[%clk 0:02:56]}
7. dxc5 {[%clk 0:03:00.7]} 7... Nbd7 {[%clk 0:02:54.3]} 8. Bd6 {[%clk
0:02:41.7]} 8... Re8 {[%clk 0:02:54.6]} 9. a3 {[%clk 0:02:29.2]} 9... Bxc5
{[%clk 0:02:49.2]} 10. Bg3 {[%clk 0:02:27.1]} 10... a6 {[%clk 0:02:31]} 11. O-O
{[%clk 0:02:25.4]} 11... Be7 {[%clk 0:02:22.6]} 12. e4 {[%clk 0:02:26.2]} 12...
Nc5 {[%clk 0:02:22.3]} 13. e5 {[%clk 0:02:26.8]} 13... Nh5 {[%clk 0:02:22]} 14.
Nd4 {[%clk 0:02:22.7]} 14... Nxg3 {[%clk 0:02:21.2]} 15. hxg3 {[%clk 0:02:24.6]}
15... Qb6 {[%clk 0:02:19.6]} 16. b4 {[%clk 0:01:04.5]} 16... Nxd3 {[%clk
0:02:18.3]} 17. Qxd3 {[%clk 0:01:06.4]} 17... Bd7 {[%clk 0:02:18.2]} 18. Kh2
{[%clk 0:00:55.4]} 18... Rec8 {[%clk 0:02:17.6]} 19. Nce2 {[%clk 0:00:55.7]}
19... a5 {[%clk 0:02:17.5]} 20. c3 {[%clk 0:00:56.2]} 20... Ra7 {[%clk
0:02:01.8]} 21. f4 {[%clk 0:00:55.5]} 21... g6 {[%clk 0:01:53.4]} 22. g4 {[%clk
0:00:56.8]} 22... Rca8 {[%clk 0:01:52.1]} 23. Rab1 {[%clk 0:00:51.3]} 23... axb4
{[%clk 0:01:52.5]} 24. axb4 {[%clk 0:00:53]} 24... Ra2 {[%clk 0:01:52.5]} 25. f5
{[%clk 0:00:53.6]} 25... Qc7 {[%clk 0:01:43.7]} 26. Qe3 {[%clk 0:00:52.3]} 26...
Bf6 {[%clk 0:01:36.4]} 27. Nf3 {[%clk 0:00:44.4]} 27... exf5 {[%clk 0:01:34.5]}
28. Nf4 {[%clk 0:00:45.6]} 28... Bg7 {[%clk 0:01:28.1]} 29. Nxd5 {[%clk
0:00:46.8]} 29... Qc4 {[%clk 0:01:20.6]} 30. Ne7+ {[%clk 0:00:46.3]} 30... Kf8
{[%clk 0:01:14]} 31. gxf5 {[%clk 0:00:47.9]} 31... Qg4 {[%clk 0:01:11.7]} 32.
Rf2 {[%clk 0:00:41.3]} 32... Kxe7 {[%clk 0:00:49.5]} 33. f6+ {[%clk 0:00:40.7]}
33... Kf8 {[%clk 0:00:50.3]} 34. fxg7+ {[%clk 0:00:39]} 34... Kxg7 {[%clk
0:00:51.5]} 35. Rbf1 {[%clk 0:00:39.7]} 35... Bc6 {[%clk 0:00:50.1]} 36. e6
{[%clk 0:00:23]} 36... Qxe6 {[%clk 0:00:48.7]} 37. Qd4+ {[%clk 0:00:22.5]} 37...
f6 {[%clk 0:00:39.2]} 38. Ng5 {[%clk 0:00:21.6]} 38... Qe5+ {[%clk 0:00:34.5]}
39. Qxe5 {[%clk 0:00:22.7]} 39... fxe5 {[%clk 0:00:36.1]} 40. Ne6+ {[%clk
0:00:20.1]} 40... Kh6 {[%clk 0:00:36.8]} 41. Kg3 {[%clk 0:00:20.6]} 41... Ra1
{[%clk 0:00:20.3]} 42. c4 {[%clk 0:00:21.1]} 42... b6 {[%clk 0:00:15.6]} 43. Kh4
{[%clk 0:00:19.9]} 43... Bd7 {[%clk 0:00:11]} 44. Ng5 {[%clk 0:00:20]} 44... Bf5
{[%clk 0:00:10.8]} 45. g4 {[%clk 0:00:20.4]} 45... Rxf1 {[%clk 0:00:09.6]} 46.
Rxf1 {[%clk 0:00:21.3]} 46... Bd7 {[%clk 0:00:02.7]} 47. Rf7 {[%clk 0:00:22.1]}
47... Rh8 {[%clk 0:00:03.4]} 48. Rxd7 {[%clk 0:00:23.3]} 1-0

[Event "*** Titled Tuesday 3|2 Blitz (Early)"]
[Site "Chess.com"]
[Date "2017.01.03"]
[Round "6"]
[White "Divertissement"]
[Black "GMNeiksans"]
[Result "1-0"]
[WhiteElo "2457"]
[BlackElo "2622"]
[TimeControl "180+2"]
[EndTime "12:18:54 PST"]
[Termination "Divertissement won on time"]

1. c4 {[%clk 0:03:02]} 1... e5 {[%clk 0:03:00.3]} 2. Nc3 {[%clk 0:03:02.1]} 2...
Nf6 {[%clk 0:03:01.2]} 3. g3 {[%clk 0:03:01.6]} 3... Bb4 {[%clk 0:03:01.7]} 4.
Bg2 {[%clk 0:03:02.5]} 4... O-O {[%clk 0:03:02.6]} 5. Nf3 {[%clk 0:03:03.5]}
5... Re8 {[%clk 0:02:53.9]} 6. O-O {[%clk 0:03:03.5]} 6... e4 {[%clk 0:02:45.9]}
7. Ng5 {[%clk 0:03:00.9]} 7... Bxc3 {[%clk 0:02:46.2]} 8. bxc3 {[%clk
0:02:52.3]} 8... h6 {[%clk 0:02:46.8]} 9. Nh3 {[%clk 0:02:52.1]} 9... b6 {[%clk
0:02:38]} 10. Rb1 {[%clk 0:02:33.2]} 10... Bb7 {[%clk 0:02:35]} 11. c5 {[%clk
0:02:22]} 11... Bd5 {[%clk 0:02:32.3]} 12. cxb6 {[%clk 0:02:12.8]} 12... axb6
{[%clk 0:02:32.8]} 13. a3 {[%clk 0:02:11.5]} 13... Na6 {[%clk 0:02:29.6]} 14.
Nf4 {[%clk 0:01:59.2]} 14... Bc6 {[%clk 0:02:30.4]} 15. d3 {[%clk 0:01:45.2]}
15... Nc5 {[%clk 0:02:19.3]} 16. d4 {[%clk 0:01:32.5]} 16... Ba4 {[%clk
0:02:19.9]} 17. Qe1 {[%clk 0:01:29.4]} 17... Nb3 {[%clk 0:02:20.5]} 18. f3
{[%clk 0:01:10.4]} 18... Na5 {[%clk 0:02:04.5]} 19. g4 {[%clk 0:01:04.3]} 19...
Bc2 {[%clk 0:01:53.9]} 20. Rb5 {[%clk 0:00:48.8]} 20... exf3 {[%clk 0:01:48.2]}
21. Bxf3 {[%clk 0:00:48.2]} 21... Be4 {[%clk 0:01:49.3]} 22. g5 {[%clk
0:00:44.7]} 22... hxg5 {[%clk 0:01:49.8]} 23. Rxg5 {[%clk 0:00:46.3]} 23... Bxf3
{[%clk 0:01:42.2]} 24. Rxf3 {[%clk 0:00:44.5]} 24... Ne4 {[%clk 0:01:43.4]} 25.
Rg2 {[%clk 0:00:36.3]} 25... Nc4 {[%clk 0:01:38.5]} 26. Nh5 {[%clk 0:00:35.4]}
26... g6 {[%clk 0:01:34.3]} 27. Nf4 {[%clk 0:00:34.5]} 27... Ra5 {[%clk
0:00:59]} 28. Nxg6 {[%clk 0:00:25.4]} 28... fxg6 {[%clk 0:01:00.3]} 29. Rxg6+
{[%clk 0:00:27]} 29... Kh7 {[%clk 0:01:01.8]} 30. Rh6+ {[%clk 0:00:28.6]} 30...
Kg7 {[%clk 0:01:03.3]} 31. Rg3+ {[%clk 0:00:19.9]} 31... Kf7 {[%clk 0:00:45.2]}
32. Qf1+ {[%clk 0:00:14.4]} 32... Nf6 {[%clk 0:00:43.9]} 33. Bg5 {[%clk
0:00:12.3]} 33... Rxg5 {[%clk 0:00:39.6]} 34. Rxg5 {[%clk 0:00:14.2]} 34... Nd6
{[%clk 0:00:13.5]} 35. Qf3 {[%clk 0:00:04.3]} 35... Ne4 {[%clk 0:00:11.9]} 36.
Rh7+ {[%clk 0:00:03.4]} 36... Ke6 {[%clk 0:00:09.7]} 37. Qf5+ {[%clk 0:00:03.7]}
37... Kd6 {[%clk 0:00:11.1]} 38. Rg6 {[%clk 0:00:04.4]} 38... Kc6 {[%clk
0:00:08.3]} 39. Rf7 {[%clk 0:00:03.8]} 39... Kb7 {[%clk 0:00:08.7]} 40. Rfxf6
{[%clk 0:00:04.6]} 40... Nxf6 {[%clk 0:00:10]} 41. Qxf6 {[%clk 0:00:06.5]} 41...
Qa8 {[%clk 0:00:06.6]} 42. Qf3+ {[%clk 0:00:07.5]} 42... c6 {[%clk 0:00:07.9]}
43. Rg7 {[%clk 0:00:08.5]} 43... Rd8 {[%clk 0:00:07.7]} 44. d5 {[%clk
0:00:08.4]} 44... c5 {[%clk 0:00:03.7]} 45. d6+ {[%clk 0:00:09.5]} 45... Ka7
{[%clk 0:00:05.2]} 46. Qxa8+ {[%clk 0:00:10.7]} 46... Kxa8 {[%clk 0:00:06.7]}
47. h4 {[%clk 0:00:12.1]} 47... Kb7 {[%clk 0:00:08.2]} 48. h5 {[%clk 0:00:13.5]}
48... Kc6 {[%clk 0:00:09.7]} 49. h6 {[%clk 0:00:15.1]} 49... Kxd6 {[%clk
0:00:10.6]} 50. h7 {[%clk 0:00:16.8]} 50... Rh8 {[%clk 0:00:11.7]} 51. Kf2
{[%clk 0:00:17.5]} 51... Kd5 {[%clk 0:00:12.7]} 52. Ke3 {[%clk 0:00:18.5]} 52...
Kc4 {[%clk 0:00:14.2]} 53. Kd2 {[%clk 0:00:20]} 53... d5 {[%clk 0:00:14.7]} 54.
Rb7 {[%clk 0:00:21.5]} 54... Kb3 {[%clk 0:00:08.9]} 55. Rxb6+ {[%clk 0:00:22.5]}
55... Kxa3 {[%clk 0:00:10.4]} 56. Rh6 {[%clk 0:00:24.4]} 56... Kb3 {[%clk
0:00:09.7]} 57. Rh5 {[%clk 0:00:25.3]} 57... d4 {[%clk 0:00:09.1]} 58. cxd4
{[%clk 0:00:26]} 58... c4 {[%clk 0:00:09.9]} 59. Rb5+ {[%clk 0:00:26.9]} 59...
Ka4 {[%clk 0:00:10.9]} 60. Rb7 {[%clk 0:00:28.4]} 1-0

[Event "*** Titled Tuesday 3|2 Blitz (Early)"]
[Site "Chess.com"]
[Date "2017.01.03"]
[Round "6"]
[White "Hamisandwich"]
[Black "FastChance"]
[Result "0-1"]
[WhiteElo "2381"]
[BlackElo "2498"]
[TimeControl "180+2"]
[EndTime "12:19:25 PST"]
[Termination "FastChance won by resignation"]

1. a3 {[%clk 0:03:02]} 1... e6 {[%clk 0:03:00.2]} 2. b4 {[%clk 0:02:58.6]} 2...
Nf6 {[%clk 0:03:00.9]} 3. Bb2 {[%clk 0:02:59.8]} 3... Be7 {[%clk 0:02:59.4]} 4.
c4 {[%clk 0:03:00.3]} 4... c5 {[%clk 0:02:57.3]} 5. bxc5 {[%clk 0:02:53.1]} 5...
Bxc5 {[%clk 0:02:57.7]} 6. d4 {[%clk 0:02:51.6]} 6... Be7 {[%clk 0:02:58.7]} 7.
Nc3 {[%clk 0:02:42.5]} 7... O-O {[%clk 0:02:51.5]} 8. e4 {[%clk 0:02:34.9]} 8...
d6 {[%clk 0:02:51.8]} 9. f4 {[%clk 0:02:26.9]} 9... b6 {[%clk 0:02:45.8]} 10.
Nf3 {[%clk 0:02:18]} 10... Bb7 {[%clk 0:02:45.7]} 11. Bd3 {[%clk 0:02:19]} 11...
Re8 {[%clk 0:02:37.4]} 12. O-O {[%clk 0:02:15.5]} 12... d5 {[%clk 0:02:34.6]}
13. cxd5 {[%clk 0:02:06.4]} 13... exd5 {[%clk 0:02:35.7]} 14. e5 {[%clk
0:02:05.1]} 14... Ne4 {[%clk 0:02:36.9]} 15. f5 {[%clk 0:01:58.1]} 15... Bf8
{[%clk 0:02:27.9]} 16. Qc2 {[%clk 0:01:36.7]} 16... Nxc3 {[%clk 0:02:22.7]} 17.
Bxc3 {[%clk 0:01:38.6]} 17... Nc6 {[%clk 0:02:22.8]} 18. f6 {[%clk 0:01:23.9]}
18... g6 {[%clk 0:02:23.5]} 19. h4 {[%clk 0:01:25.3]} 19... Qd7 {[%clk
0:02:10.8]} 20. Nh2 {[%clk 0:00:52.6]} 20... Rac8 {[%clk 0:02:06.8]} 21. Qd2
{[%clk 0:00:50.7]} 21... Qc7 {[%clk 0:01:58.2]} 22. Bb2 {[%clk 0:00:38]} 22...
Na5 {[%clk 0:01:57.9]} 23. h5 {[%clk 0:00:31.9]} 23... Nc4 {[%clk 0:01:36.3]}
24. Qg5 {[%clk 0:00:21.3]} 24... Nxb2 {[%clk 0:01:27.8]} 25. hxg6 {[%clk
0:00:22]} 25... Nxd3 {[%clk 0:01:17.5]} 26. gxh7+ {[%clk 0:00:23]} 26... Kxh7
{[%clk 0:01:15.4]} 27. Qf5+ {[%clk 0:00:17.1]} 27... Kh8 {[%clk 0:01:08]} 28.
Qh5+ {[%clk 0:00:13.3]} 28... Kg8 {[%clk 0:01:07]} 29. Qg5+ {[%clk 0:00:14.7]}
29... Kh7 {[%clk 0:01:04.2]} 30. Rf3 {[%clk 0:00:14.8]} 30... Nf2 {[%clk
0:00:31.2]} 31. Kxf2 {[%clk 0:00:09.4]} 31... Qc2+ {[%clk 0:00:25.1]} 32. Kg1
{[%clk 0:00:10.7]} 32... Bh6 {[%clk 0:00:26.4]} 33. Rh3 {[%clk 0:00:09.1]} 33...
Qg6 {[%clk 0:00:27.4]} 34. Qh4 {[%clk 0:00:06.5]} 34... Rh8 {[%clk 0:00:14.4]}
35. Ng4 {[%clk 0:00:07.2]} 35... Rc2 {[%clk 0:00:12]} 36. Qxh6+ {[%clk
0:00:05.5]} 36... Qxh6 {[%clk 0:00:13]} 37. Rxh6+ {[%clk 0:00:07.4]} 37... Kg8
{[%clk 0:00:14.6]} 38. Rxh8+ {[%clk 0:00:08.6]} 38... Kxh8 {[%clk 0:00:16.5]}
39. Rf1 {[%clk 0:00:09.1]} 39... Bc8 {[%clk 0:00:14.8]} 40. Ne3 {[%clk
0:00:10.5]} 40... Rd2 {[%clk 0:00:13.3]} 41. Nxd5 {[%clk 0:00:10.5]} 41... Rxd4
{[%clk 0:00:14.6]} 42. Ne7 {[%clk 0:00:12.1]} 42... Be6 {[%clk 0:00:15.4]} 43.
Kf2 {[%clk 0:00:13.1]} 43... Rh4 {[%clk 0:00:14]} 44. Kg3 {[%clk 0:00:13.8]}
44... Rh5 {[%clk 0:00:14]} 45. Kf4 {[%clk 0:00:15.2]} 45... Kh7 {[%clk
0:00:14.8]} 46. g3 {[%clk 0:00:15.8]} 46... Kh6 {[%clk 0:00:15.4]} 47. Rd1
{[%clk 0:00:15.6]} 47... Rh2 {[%clk 0:00:15.2]} 48. Rd8 {[%clk 0:00:14]} 48...
Kh7 {[%clk 0:00:15.9]} 49. Ra8 {[%clk 0:00:13.8]} 49... a5 {[%clk 0:00:15.3]}
50. Ra6 {[%clk 0:00:09]} 50... Rf2+ {[%clk 0:00:16]} 51. Kg5 {[%clk 0:00:09.3]}
51... Re2 {[%clk 0:00:16.8]} 52. Rxb6 {[%clk 0:00:09.5]} 52... Rxe5+ {[%clk
0:00:17.6]} 53. Kf4 {[%clk 0:00:10.8]} 53... Rc5 {[%clk 0:00:17.9]} 54. Rb2
{[%clk 0:00:07.4]} 54... Rc4+ {[%clk 0:00:16.2]} 55. Ke5 {[%clk 0:00:08.3]}
55... Kh6 {[%clk 0:00:15.9]} 56. Rb5 {[%clk 0:00:07.5]} 56... a4 {[%clk
0:00:15.4]} 57. Kd6 {[%clk 0:00:07]} 57... Rc3 {[%clk 0:00:13.8]} 58. Ng8+
{[%clk 0:00:08]} 58... Kg6 {[%clk 0:00:14.2]} 59. Ne7+ {[%clk 0:00:08.3]} 59...
Kxf6 {[%clk 0:00:15.7]} 60. Nc6 {[%clk 0:00:07.6]} 60... Rxa3 {[%clk 0:00:15.3]}
61. Rb4 {[%clk 0:00:07]} 61... Rd3+ {[%clk 0:00:15.3]} 62. Kc7 {[%clk
0:00:08.4]} 62... a3 {[%clk 0:00:16.4]} 63. Rf4+ {[%clk 0:00:09.9]} 63... Kg5
{[%clk 0:00:17.3]} 64. Ne5 {[%clk 0:00:10.2]} 64... Rxg3 {[%clk 0:00:17.1]} 65.
Ra4 {[%clk 0:00:10.5]} 65... Rc3+ {[%clk 0:00:18.2]} 66. Kd6 {[%clk 0:00:11.5]}
66... a2 {[%clk 0:00:19.1]} 67. Ke7 {[%clk 0:00:10.9]} 67... Rc1 {[%clk
0:00:18.6]} 68. Nxf7+ {[%clk 0:00:07.8]} 68... Bxf7 {[%clk 0:00:19.8]} 0-1